bitfinex-derivatives/quotes_BTCF0:USTF0_20240820
["timestamp","ask_amount","ask_price","bid_price","bid_amount"]
[1724174972213,0.23808,58833.0,58832.0,0.067981]
[1724174973516,0.25147661,58833.0,58832.0,0.068981]
[1724174973822,0.01339661,58833.0,58832.0,0.068981]
[1724174975323,0.01439661,58833.0,58832.0,0.069981]
[1724174975511,0.004,58833.0,58832.0,0.715863]
[1724174975712,0.004,58833.0,58832.0,0.76682304]
[1724174975915,0.004,58833.0,58832.0,4.485863]
[1724174976117,0.00025511,58838.0,58832.0,4.485863]
[1724174976118,0.00025511,58838.0,58837.0,0.067975]
[1724174977309,0.00025511,58838.0,58837.0,0.13595]
[1724174977718,0.00025511,58838.0,58837.0,0.205925]
[1724174983028,0.1187058,58846.0,58842.0,0.067969]
[1724174983218,0.03281521,58845.0,58844.0,0.067967]
[1724174984026,0.1187058,58845.0,58844.0,0.135934]
[1724174984327,0.03281521,58845.0,58844.0,0.135934]
[1724174985225,0.03281521,58845.0,58844.0,3.905934]
[1724174986027,0.03281521,58845.0,58844.0,3.838967]
[1724174986529,0.161465,58846.0,58845.0,0.067966]
[1724174986728,0.20306515,58846.0,58845.0,0.067966]
[1724174986926,0.32935832,58846.0,58845.0,0.067966]
[1724174987128,0.0935,58846.0,58845.0,0.067966]
[1724174987623,0.0935,58846.0,58845.0,0.069966]
[1724174988434,0.37098779,58847.0,58846.0,0.067965]
[1724174988937,0.3608,58847.0,58846.0,0.13593]
[1724174989825,0.3608,58847.0,58846.0,0.13693]
[1724174990634,0.3608,58847.0,58846.0,0.13793]
[1724174991528,0.01017743,58848.0,58847.0,0.135926]
[1724174991728,0.00025511,58850.0,58849.0,0.067961]
[1724174992732,0.00025511,58850.0,58849.0,0.068961]
[1724174993323,0.01084437,58850.0,58849.0,0.068961]
[1724174993522,0.00025511,58850.0,58849.0,0.068961]
[1724174993926,0.00025511,58850.0,58849.0,0.069961]
[1724174994324,0.03306804,58850.0,58849.0,0.069961]
[1724174994928,0.067965,58846.0,58835.0,0.067977]
[1724174995236,0.3608,58842.0,58841.0,0.06797]
[1724174995436,0.3608,58842.0,58841.0,3.83797]
[1724174995733,0.11814791,58849.0,58847.0,0.067963]
[1724174995929,0.27817655,58849.0,58848.0,0.067962]
[1724174996131,0.19281515,58849.0,58848.0,0.067962]
[1724174996531,0.26077615,58849.0,58848.0,0.067962]
[1724174997323,0.39585323,58849.0,58848.0,0.067962]
[1724174997524,0.26177549,58849.0,58848.0,0.069962]
[1724174999233,0.4296746,58849.0,58848.0,0.069962]
[1724174999835,0.4296746,58849.0,58848.0,0.002]
[1724175000233,0.32973649,58849.0,58848.0,0.002]
[1724175000840,0.37953649,58849.0,58848.0,0.002]
[1724175001227,0.56476346,58849.0,58848.0,0.002]
[1724175001827,0.37953649,58849.0,58848.0,0.002]
[1724175002034,0.42113666,58849.0,58848.0,0.002]
[1724175002344,0.346722,58849.0,58848.0,0.002]
[1724175004338,0.707522,58849.0,58848.0,0.002]
[1724175004640,0.06797,58841.0,58840.0,0.067971]
[1724175004838,0.42877,58841.0,58840.0,0.067971]
[1724175005143,0.42877,58841.0,58840.0,3.837971]
[1724175005343,0.42877,58841.0,58840.0,3.88884691]
[1724175005540,0.42877,58841.0,58840.0,3.837971]
[1724175006240,0.43077,58841.0,58840.0,3.838971]
[1724175006443,0.3628,58841.0,58840.0,3.838971]
[1724175006631,0.3628,58841.0,58840.0,3.839971]
[1724175007135,0.002,58841.0,58840.0,3.907942]
[1724175007442,0.002,58841.0,58840.0,4.02398873]
[1724175009732,0.002,58841.0,58840.0,4.0345239]
[1724175010238,0.002,58841.0,58840.0,3.96657717]
[1724175010443,0.002,58841.0,58840.0,4.0345239]
[1724175010841,0.428762,58849.0,58848.0,0.067962]
[1724175011341,0.3608,58849.0,58848.0,0.067962]
[1724175012544,0.3608,58849.0,58848.0,0.068962]
[1724175012747,0.3608,58849.0,58848.0,0.069962]
[1724175013137,0.3608,58849.0,58848.0,0.12090774]
[1724175014645,0.3608,58849.0,58848.0,0.18886974]
[1724175015055,0.3608,58849.0,58848.0,0.137924]
[1724175015242,0.3608,58849.0,58848.0,0.19918375]
[1724175016343,0.3608,58849.0,58848.0,0.14824387]
[1724175017342,0.00025511,58850.0,58848.0,0.14824387]
[1724175017343,0.00025511,58850.0,58849.0,0.067961]
[1724175018154,0.06821511,58850.0,58849.0,0.067961]
[1724175018446,0.06821511,58850.0,58848.0,0.002]
[1724175018447,0.067961,58849.0,58848.0,0.002]
[1724175018651,0.067968,58843.0,58842.0,0.067969]
[1724175018838,0.428768,58843.0,58842.0,0.067969]
[1724175019038,0.427768,58843.0,58842.0,0.067969]
[1724175019540,0.66849349,58843.0,58842.0,0.067969]
[1724175019743,0.66749349,58843.0,58842.0,0.067969]
[1724175020344,0.66749349,58843.0,58842.0,0.068969]
[1724175020545,0.565768,58843.0,58842.0,0.068969]
[1724175020949,0.565768,58843.0,58842.0,0.069969]
[1724175021747,0.633736,58843.0,58842.0,0.002]
[1724175021939,0.633736,58843.0,58839.0,0.00025511]
[1724175021940,0.067971,58840.0,58839.0,0.00025511]
[1724175022148,0.428771,58840.0,58839.0,0.00025511]
[1724175023052,0.722671,58840.0,58839.0,0.00025511]
[1724175023251,0.98427591,58840.0,58839.0,0.00025511]
[1724175023439,0.953642,58840.0,58839.0,0.00125511]
[1724175023846,0.662742,58840.0,58839.0,0.00225511]
[1724175024139,0.594771,58840.0,58839.0,0.00225511]
[1724175027057,0.3668,58840.0,58839.0,0.07022811]
[1724175027353,0.3668,58840.0,58839.0,3.84022811]
[1724175030249,0.434771,58840.0,58839.0,0.00225511]
[1724175031847,0.584771,58840.0,58839.0,0.00225511]
[1724175033255,0.584771,58840.0,58839.0,0.07022811]
[1724175033454,0.434771,58840.0,58839.0,0.07022811]
[1724175034457,0.3668,58840.0,58839.0,0.07022811]
[1724175034652,0.3608,58843.0,58839.0,0.00225511]
[1724175034855,0.067964,58847.0,58842.0,0.067969]
[1724175035067,0.3608,58854.0,58845.0,0.067966]
[1724175035068,0.01062424,58850.0,58845.0,0.067966]
[1724175035269,0.00025511,58850.0,58845.0,0.067966]
[1724175036264,0.003,58847.0,58846.0,3.837965]
[1724175036666,0.06821511,58850.0,58849.0,0.067961]
[1724175036667,0.07121511,58850.0,58849.0,0.067961]
[1724175037965,0.23121511,58850.0,58849.0,0.067961]
[1724175038762,0.22921511,58850.0,58849.0,0.068961]
[1724175038972,0.22921511,58850.0,58849.0,0.069961]
[1724175039373,0.2620304,58850.0,58849.0,0.069961]
[1724175040771,0.067971,58842.0,58841.0,0.067969]
[1724175041069,0.428771,58842.0,58841.0,0.067969]
[1724175042467,0.43929684,58842.0,58841.0,0.067969]
[1724175042658,0.44029684,58842.0,58841.0,0.068969]
[1724175042861,0.44129684,58842.0,58841.0,0.069969]
[1724175045364,0.08049684,58842.0,58841.0,0.069969]
[1724175045564,0.44129684,58842.0,58841.0,0.069969]
[1724175046867,0.37332584,58842.0,58841.0,0.069969]
[1724175047474,0.37332584,58842.0,58841.0,0.137939]
[1724175047661,0.3628,58842.0,58841.0,3.907939]
[1724175047861,0.002,58842.0,58841.0,3.95880104]
[1724175048270,0.002,58842.0,58841.0,3.975909]
[1724175049261,0.067962,58848.0,58847.0,0.067963]
[1724175049967,0.07839393,58848.0,58847.0,0.067963]
[1724175051469,0.07839393,58848.0,58847.0,0.068963]
[1724175051861,0.07939393,58848.0,58847.0,0.069963]
[1724175054467,0.18090738,58848.0,58847.0,0.069963]
[1724175054666,0.07939393,58848.0,58847.0,0.069963]
[1724175057877,0.14735593,58848.0,58847.0,0.002]
[1724175058083,0.31735593,58848.0,58847.0,0.002]
[1724175058767,0.067975,58837.0,58834.0,0.067978]
[1724175058973,0.53032131,58835.0,58834.0,0.067978]
[1724175059273,0.067982,58831.0,58830.0,0.067982]
[1724175060371,0.067986,58828.0,58827.0,0.067986]
[1724175061079,0.065986,58828.0,58827.0,0.067986]
[1724175061582,0.065986,58828.0,58825.0,0.00025489]
[1724175061583,0.066988,58826.0,58825.0,0.00025489]
[1724175061981,0.065988,58826.0,58825.0,0.06824389]
[1724175062876,0.069988,58826.0,58825.0,0.06824389]
[1724175064082,0.363888,58826.0,58825.0,0.00025489]
[1724175064583,0.069988,58826.0,58825.0,0.06824389]
[1724175066784,0.004,58826.0,58825.0,0.06824389]
[1724175070075,0.004,58826.0,58825.0,0.20422189]
[1724175070276,0.004,58826.0,58825.0,1.11422189]
[1724175070682,0.3608,58834.0,58833.0,0.06798]
[1724175070876,0.0107762,58836.0,58835.0,0.067977]
[1724175071080,0.00025489,58836.0,58835.0,0.067977]
[1724175071283,0.00025489,58836.0,58835.0,3.837977]
[1724175072482,0.00325489,58836.0,58835.0,3.838977]
[1724175072679,0.00625489,58836.0,58835.0,3.839977]
[1724175073475,0.00625489,58836.0,58835.0,3.907954]
[1724175073788,0.801165,58846.0,58845.0,0.067966]
[1724175074083,0.803485,58846.0,58845.0,0.067966]
[1724175074284,0.81171311,58846.0,58845.0,0.067966]
[1724175074685,0.43931311,58846.0,58845.0,0.067966]
[1724175074980,0.43931311,58846.0,58845.0,0.068966]
[1724175075185,0.43931311,58846.0,58845.0,0.069966]
[1724175078684,0.43931311,58846.0,58845.0,0.068966]
[1724175078891,0.43931311,58846.0,58845.0,0.069966]
[1724175079481,0.37134811,58846.0,58845.0,0.068966]
[1724175079692,0.3608,58846.0,58845.0,0.069966]
[1724175080284,0.0104066,58847.0,58846.0,0.067965]
[1724175080486,0.067962,58849.0,58848.0,0.067962]
[1724175080987,0.578762,58849.0,58848.0,0.067962]
[1724175081180,0.067965,58846.0,58845.0,0.069965]
[1724175081381,0.067965,58846.0,58845.0,0.068965]
[1724175081382,0.066965,58846.0,58845.0,0.068965]
[1724175081882,0.064965,58846.0,58845.0,0.067965]
[1724175082080,0.37098885,58849.0,58848.0,0.067962]
[1724175084287,0.37098885,58849.0,58848.0,0.135924]
[1724175084493,0.37198885,58849.0,58848.0,0.136924]
[1724175084994,0.37198885,58849.0,58848.0,0.137924]
[1724175085386,0.01118885,58849.0,58848.0,0.498724]
[1724175089592,0.001,58849.0,58848.0,0.566686]
[1724175090793,0.001,58849.0,58848.0,1.076486]
[1724175094504,0.001,58849.0,58848.0,0.566686]
[1724175096907,0.00025489,58851.0,58850.0,0.20388]
[1724175097994,0.00125489,58851.0,58850.0,0.20588]
[1724175098196,0.00125489,58851.0,58850.0,0.21620949]
[1724175102202,0.00125489,58851.0,58850.0,0.26710808]
[1724175103200,0.00125489,58851.0,58850.0,0.12085859]
[1724175103401,0.06921389,58851.0,58850.0,0.06996]
[1724175106007,0.22921389,58851.0,58850.0,0.06996]
[1724175107304,0.23956768,58851.0,58850.0,0.06996]
[1724175108207,0.00125489,58851.0,58850.0,0.13792]
[1724175108509,0.00125489,58851.0,58850.0,0.18881859]
[1724175108811,0.00125489,58851.0,58850.0,3.95881859]
[1724175109011,0.00125489,58851.0,58850.0,3.90792]
[1724175111008,0.00125489,58851.0,58850.0,3.91839462]
[1724175111205,0.00125489,58851.0,58850.0,3.98621068]
[1724175111716,0.00125489,58851.0,58850.0,3.91839462]
[1724175112207,0.00125489,58851.0,58850.0,3.97573606]
[1724175113407,0.00125489,58851.0,58850.0,3.97582812]
[1724175113611,0.00125489,58851.0,58850.0,3.90792]
[1724175114701,0.00125489,58851.0,58850.0,3.97588]
[1724175114702,0.00025489,58851.0,58850.0,3.97588]
[1724175114907,0.00025489,58851.0,58850.0,3.90792]
[1724175116311,0.00025489,58851.0,58850.0,3.97588]
[1724175116906,0.00025489,58851.0,58850.0,3.90792]
[1724175120411,0.00025489,58851.0,58850.0,3.97583988]
[1724175122613,0.00025489,58851.0,58850.0,0.13787988]
[1724175122817,0.00025489,58851.0,58850.0,0.06996]
[1724175124223,0.00025489,58851.0,58850.0,0.13792]
[1724175124613,0.00025489,58851.0,58850.0,0.20583988]
[1724175124814,0.00025489,58851.0,58850.0,0.13792]
[1724175125006,0.00025489,58851.0,58850.0,0.20583988]
[1724175125212,0.00025489,58851.0,58850.0,0.27379988]
[1724175125409,0.0483,58860.0,58859.0,0.06795]
[1724175125613,0.116248,58860.0,58859.0,0.06795]
[1724175126018,0.12652738,58860.0,58859.0,0.06795]
[1724175127124,0.12652738,58860.0,58859.0,0.06895]
[1724175127422,0.12652738,58860.0,58859.0,0.06995]
[1724175129319,0.05857938,58860.0,58859.0,0.1379]
[1724175129521,0.0483,58860.0,58859.0,0.18883783]
[1724175129724,0.0483,58860.0,58859.0,0.1379]
[1724175130521,0.0483,58860.0,58859.0,0.1369]
[1724175130824,0.0483,58860.0,58859.0,0.1379]
[1724175139637,0.0483,58860.0,58859.0,0.18880754]
[1724175140130,0.0483,58860.0,58859.0,0.1379]
[1724175140731,0.00016082,58865.0,58864.0,0.203832]
[1724175140929,0.165828,58878.0,58869.0,0.067937]
[1724175141235,0.17626234,58878.0,58877.0,0.067929]
[1724175142647,0.29366234,58878.0,58877.0,0.068929]
[1724175143747,0.29366234,58878.0,58877.0,0.069929]
[1724175144435,0.17626234,58878.0,58877.0,0.069929]
[1724175144942,0.20905986,58878.0,58877.0,0.069929]
[1724175150047,0.067933,58874.0,58873.0,0.067933]
[1724175150247,0.66946587,58874.0,58873.0,0.067933]
[1724175151143,0.135866,58873.0,58872.0,0.00025489]
[1724175151343,0.82722587,58873.0,58872.0,0.06818989]
[1724175151541,1.22722587,58873.0,58872.0,0.06818989]
[1724175151734,0.215933,58873.0,58872.0,0.06818989]
[1724175152846,0.3608,58874.0,58873.0,0.067933]
[1724175154543,0.3628,58874.0,58873.0,0.068933]
[1724175154745,0.3648,58874.0,58873.0,0.069933]
[1724175156248,0.3638,58874.0,58873.0,0.137866]
[1724175156448,0.003,58874.0,58873.0,0.137866]
[1724175158343,0.003,58874.0,58873.0,0.069933]
[1724175158752,0.220932,58874.0,58873.0,0.069933]
[1724175159048,0.581732,58874.0,58873.0,0.069933]
[1724175159440,0.431732,58874.0,58873.0,0.069933]
[1724175159841,0.070932,58874.0,58873.0,0.069933]
[1724175160446,0.230932,58874.0,58873.0,0.069933]
[1724175160844,0.277232,58874.0,58873.0,0.069933]
[1724175162148,0.070932,58874.0,58873.0,0.069933]
[1724175163254,0.003,58874.0,58873.0,0.137866]
[1724175163848,0.003,58874.0,58873.0,3.907866]
[1724175164643,0.003,58874.0,58873.0,0.137866]
[1724175171960,0.003,58874.0,58873.0,0.205799]
[1724175172159,0.3608,58887.0,58884.0,0.135842]
[1724175172463,0.0575231,58885.0,58884.0,0.203763]
[1724175172766,0.067914,58890.0,58889.0,0.067915]
[1724175173359,0.08477523,58891.0,58890.0,0.067913]
[1724175173561,0.067911,58892.0,58891.0,0.067911]
[1724175173955,0.067911,58892.0,58884.0,3.82302651]
[1724175173956,0.067914,58890.0,58884.0,3.77225489]
[1724175174268,0.427719,58885.0,58884.0,3.77125489]
[1724175174462,0.427719,58885.0,58884.0,0.00125489]
[1724175175360,0.426719,58885.0,58884.0,0.06817589]
[1724175176362,0.426719,58885.0,58884.0,0.06917589]
[1724175176961,0.575719,58885.0,58884.0,0.06917589]
[1724175177166,0.067923,58882.0,58881.0,0.067924]
[1724175177359,0.067929,58878.0,58877.0,0.067928]
[1724175177556,0.067929,58878.0,58877.0,3.837928]
[1724175177557,0.226929,58878.0,58877.0,3.837928]
[1724175177759,0.226929,58878.0,58877.0,0.067928]
[1724175178266,0.736449,58878.0,58877.0,0.067928]
[1724175178861,0.735449,58878.0,58877.0,0.067928]
[1724175179062,0.735449,58878.0,58873.0,0.067933]
[1724175179063,0.067933,58874.0,58873.0,0.067933]
[1724175179266,0.578733,58874.0,58873.0,0.067933]
[1724175179471,0.577733,58874.0,58873.0,0.067933]
[1724175179762,0.576733,58874.0,58873.0,0.067933]
[1724175180167,0.5108,58874.0,58873.0,0.067933]
[1724175180357,0.3608,58874.0,58873.0,0.067933]
[1724175180552,0.3648,58874.0,58873.0,0.068933]
[1724175181765,0.432732,58874.0,58873.0,0.068933]
[1724175182866,0.436732,58874.0,58873.0,0.069933]
[1724175183161,0.46953117,58874.0,58873.0,0.069933]
[1724175183664,0.40159917,58874.0,58873.0,0.069933]
[1724175184463,0.40159917,58874.0,58873.0,3.839933]
[1724175185263,0.40159917,58874.0,58873.0,3.907866]
[1724175185657,0.04079917,58874.0,58873.0,3.907866]
[1724175185968,0.03979917,58874.0,58873.0,4.268666]
[1724175186170,0.00574511,58874.0,58873.0,4.336599]
[1724175186664,0.00274511,58874.0,58873.0,4.335599]
[1724175186870,0.00574511,58874.0,58873.0,4.336599]
[1724175187170,0.007,58874.0,58873.0,4.336599]
[1724175187561,0.004,58874.0,58873.0,4.335599]
[1724175187763,0.007,58874.0,58873.0,4.336599]
[1724175189365,0.003,58874.0,58873.0,4.34578911]
[1724175189561,0.006,58874.0,58873.0,4.34678911]
[1724175189874,0.003,58874.0,58873.0,4.34578911]
[1724175190059,0.003,58874.0,58873.0,4.34678911]
[1724175190265,0.006,58874.0,58873.0,0.430733]
[1724175190570,0.073932,58874.0,58873.0,0.429733]
[1724175190769,0.239932,58874.0,58873.0,0.068933]
[1724175191066,0.702732,58874.0,58873.0,0.069933]
[1724175192270,0.433732,58874.0,58873.0,0.069933]
[1724175192471,0.072932,58874.0,58873.0,0.069933]
[1724175192973,0.073932,58874.0,58873.0,0.069933]
[1724175193167,0.070932,58874.0,58873.0,0.068933]
[1724175193367,0.073932,58874.0,58873.0,0.069933]
[1724175193672,0.233932,58874.0,58873.0,0.069933]
[1724175194071,0.24431632,58874.0,58873.0,0.069933]
[1724175194468,0.24131632,58874.0,58873.0,0.068933]
[1724175194768,0.68594432,58874.0,58870.0,0.067936]
[1724175194970,0.6544,58871.0,58870.0,0.067936]
[1724175195173,0.8044,58871.0,58870.0,0.067936]
[1724175195565,0.578737,58871.0,58870.0,0.067936]
[1724175195765,0.428737,58871.0,58870.0,0.067936]
[1724175196172,0.08131632,58874.0,58873.0,0.067933]
[1724175196576,0.01338432,58874.0,58873.0,0.067933]
[1724175196770,0.01038432,58874.0,58873.0,0.067933]
[1724175196973,0.004,58874.0,58873.0,0.067933]
[1724175197274,0.004,58874.0,58873.0,3.837933]
[1724175197669,0.067929,58877.0,58876.0,0.06793]
[1724175197870,0.07824073,58877.0,58876.0,0.06793]
[1724175198472,0.01031173,58877.0,58876.0,0.06793]
[1724175198668,0.067926,58880.0,58879.0,0.067926]
[1724175200185,0.075926,58880.0,58879.0,0.069926]
[1724175200980,0.08634358,58880.0,58879.0,0.069926]
[1724175203680,0.01841758,58880.0,58879.0,0.069926]
[1724175204083,0.08634258,58880.0,58879.0,0.069926]
[1724175204285,0.008,58880.0,58879.0,0.137852]
[1724175204582,0.00574512,58880.0,58879.0,1.476098]
[1724175204777,0.00574512,58880.0,58879.0,1.54379306]
[1724175205384,0.00174512,58880.0,58879.0,1.075098]
[1724175205578,0.004,58880.0,58879.0,1.075098]
[1724175205883,0.008,58880.0,58879.0,1.15412327]
[1724175206081,0.008,58880.0,58879.0,1.08642821]
[1724175207677,0.008,58880.0,58879.0,0.498652]
[1724175207876,0.008,58880.0,58879.0,0.54935466]
[1724175208076,0.008,58880.0,58879.0,0.430726]
[1724175210188,0.008,58880.0,58879.0,0.48142866]
[1724175211081,0.008,58880.0,58879.0,0.430726]
[1724175211274,0.008,58880.0,58879.0,0.48142866]
[1724175211883,0.008,58880.0,58879.0,0.54935466]
[1724175212284,0.008,58880.0,58879.0,0.498652]
[1724175213177,0.008,58880.0,58879.0,0.566578]
[1724175220084,0.008,58880.0,58879.0,0.61728066]
[1724175221189,0.008,58880.0,58879.0,0.566578]
[1724175222789,0.008,58880.0,58879.0,0.61724111]
[1724175223291,0.008,58880.0,58879.0,0.566578]
[1724175224987,0.008,58880.0,58879.0,1.476098]
[1724175225200,0.008,58880.0,58879.0,1.54379306]
[1724175225797,0.008,58880.0,58879.0,1.14379306]
[1724175225998,0.008,58880.0,58879.0,0.566578]
[1724175226194,0.008,58880.0,58879.0,0.63427306]
[1724175228294,0.008,58880.0,58879.0,1.476098]
[1724175232288,0.008,58880.0,58879.0,1.076098]
[1724175233489,0.008,58880.0,58879.0,0.715298]
[1724175233795,0.008,58880.0,58879.0,1.076098]
[1724175234097,0.008,58880.0,58879.0,1.16071461]
[1724175235197,0.008,58880.0,58879.0,1.076098]
[1724175236997,0.008,58880.0,58879.0,0.498652]
[1724175240208,0.075925,58880.0,58879.0,0.43050691]
[1724175240392,1.53002108,58880.0,58873.0,0.067933]
[1724175240598,1.53002108,58880.0,58869.0,0.11872694]
[1724175240599,0.067934,58872.0,58869.0,0.11872694]
[1724175240796,0.0496,58871.0,58870.0,0.067937]
[1724175241806,0.0486,58871.0,58870.0,0.067937]
[1724175242094,0.0486,58871.0,58870.0,0.068937]
[1724175242095,0.0506,58871.0,58870.0,0.068937]
[1724175243201,0.002,58871.0,58870.0,0.068937]
[1724175243891,0.009,58871.0,58870.0,0.069937]
[1724175244089,0.009,58871.0,58870.0,0.12072694]
[1724175244503,0.009,58871.0,58870.0,0.069937]
[1724175244704,0.00699999,58871.0,58870.0,0.99186394]
[1724175245093,0.00699999,58871.0,58870.0,0.941074]
[1724175245295,0.00699999,58871.0,58870.0,0.12064631]
[1724175245797,0.00699999,58871.0,58870.0,0.069937]
[1724175248805,0.00699999,58871.0,58870.0,0.137874]
[1724175249309,0.00699999,58871.0,58870.0,0.69818331]
[1724175249506,0.00699999,58871.0,58870.0,0.74508331]
[1724175250308,0.00699999,58871.0,58870.0,0.12064631]
[1724175250507,0.00699999,58871.0,58870.0,0.069937]
[1724175254409,0.07493599,58871.0,58870.0,0.069937]
[1724175254802,0.00699999,58871.0,58870.0,0.069937]
[1724175264611,0.07493599,58871.0,58870.0,0.069937]
[1724175264808,0.067937,58870.0,58865.0,0.06819589]
[1724175265007,0.067941,58866.0,58865.0,0.06819589]
[1724175266107,0.067941,58866.0,58865.0,0.06919589]
[1724175266508,0.429482,58866.0,58865.0,0.00125489]
[1724175266908,0.067949,58861.0,58860.0,0.067948]
[1724175267108,0.428749,58861.0,58860.0,0.067948]
[1724175267612,0.067952,58859.0,58856.0,3.77]
[1724175267815,0.067952,58859.0,58853.0,0.05070931]
[1724175267816,0.067953,58856.0,58855.0,0.067954]
[1724175269217,0.066953,58856.0,58855.0,0.067954]
[1724175269817,0.071953,58856.0,58855.0,0.068954]
[1724175270422,0.071953,58856.0,58855.0,0.071954]
[1724175272214,0.071953,58856.0,58850.0,0.00025489]
[1724175272215,0.067957,58852.0,58850.0,0.00025489]
[1724175272417,0.067962,58848.0,58838.0,0.3608]
[1724175272817,0.067971,58842.0,58838.0,0.3608]
[1724175273019,0.067971,58842.0,58841.0,0.06797]
[1724175273324,0.3598,58843.0,58842.0,0.067969]
[1724175273509,0.3568,58843.0,58842.0,0.067969]
[1724175273907,0.35697842,58843.0,58842.0,0.067969]
[1724175274723,0.35697842,58843.0,58842.0,0.070969]
[1724175275623,0.36897842,58843.0,58842.0,0.070969]
[1724175275816,0.36897842,58843.0,58842.0,3.840969]
[1724175276923,0.01217842,58843.0,58842.0,3.840969]
[1724175278224,0.08014642,58843.0,58842.0,3.840969]
[1724175278426,0.08014642,58843.0,58842.0,3.773]
[1724175280617,0.09020238,58843.0,58842.0,3.840969]
[1724175282326,0.26020238,58843.0,58842.0,3.840969]
[1724175282627,0.26020238,58843.0,58842.0,3.773]
[1724175282818,0.26020238,58843.0,58842.0,0.003]
[1724175282819,1.13161038,58843.0,58842.0,0.003]
[1724175283020,0.067971,58840.0,58839.0,0.067971]
[1724175283320,0.227971,58840.0,58839.0,0.067971]
[1724175284225,0.227971,58840.0,58836.0,3.83823089]
[1724175284419,0.067975,58837.0,58836.0,3.83823089]
[1724175286023,0.067975,58837.0,58836.0,3.84023089]
[1724175286225,0.3608,58839.0,58838.0,0.067974]
[1724175286427,0.5008,58839.0,58838.0,0.067974]
[1724175287328,0.568772,58839.0,58838.0,0.067974]
[1724175287628,0.576772,58839.0,58838.0,0.067974]
[1724175287829,0.576772,58839.0,58838.0,0.069974]
[1724175288825,0.215972,58839.0,58838.0,0.069974]
[1724175289025,0.008,58839.0,58838.0,0.069974]
[1724175289330,0.008,58839.0,58838.0,0.137948]
[1724175289535,0.008,58839.0,58838.0,0.183048]
[1724175290328,0.008,58839.0,58838.0,0.115074]
[1724175300137,0.075972,58839.0,58838.0,0.069974]
[1724175301239,0.075972,58839.0,58838.0,0.12068331]
[1724175302437,0.075972,58839.0,58838.0,0.069974]
[1724175303835,0.008,58839.0,58838.0,0.069974]
[1724175306140,0.008,58839.0,58838.0,0.12068331]
[1724175306740,0.075972,58839.0,58838.0,0.069974]
[1724175307139,0.436772,58839.0,58838.0,0.069974]
[1724175309134,0.067975,58837.0,58836.0,0.0509642]
[1724175309348,0.067975,58837.0,58836.0,0.00025489]
[1724175309747,0.361575,58837.0,58836.0,0.00025489]
[1724175310253,0.361575,58837.0,58836.0,0.00225489]
[1724175310741,0.367575,58837.0,58836.0,0.00225489]
[1724175310951,0.43555,58837.0,58836.0,0.00225489]
[1724175312345,0.367575,58837.0,58836.0,0.07023089]
[1724175312740,0.537575,58837.0,58836.0,0.07023089]
[1724175313050,0.60555,58837.0,58836.0,1e-08]
[1724175313646,1.51543,58837.0,58836.0,1e-08]
[1724175313849,1.51543,58837.0,58823.0,0.3608]
[1724175313850,0.067987,58826.0,58822.0,0.06770691]
[1724175314040,0.2936,58824.0,58823.0,0.067991]
[1724175314549,0.9536,58824.0,58823.0,0.067991]
[1724175314741,0.511591,58824.0,58823.0,0.067991]
[1724175315344,1.021591,58824.0,58823.0,0.069991]
[1724175315542,0.511591,58824.0,58823.0,0.069991]
[1724175315745,0.52206163,58824.0,58823.0,0.069991]
[1724175315944,0.22846163,58824.0,58823.0,0.069991]
[1724175316847,0.24046163,58824.0,58823.0,0.069991]
[1724175317054,0.09046163,58824.0,58823.0,0.069991]
[1724175317256,0.02247063,58824.0,58823.0,0.069991]
[1724175318344,0.02247063,58824.0,58823.0,0.430791]
[1724175318345,0.012,58824.0,58823.0,0.430791]
[1724175318652,0.012,58824.0,58823.0,0.498782]
[1724175319652,0.012,58824.0,58823.0,0.430791]
[1724175319846,0.012,58824.0,58823.0,0.44111289]
[1724175321946,0.012,58824.0,58823.0,0.430791]
[1724175322152,0.07999,58824.0,58823.0,0.3628]
[1724175322351,0.07999,58824.0,58818.0,0.00025489]
[1724175322352,0.067996,58819.0,58818.0,0.06825089]
[1724175323552,0.074996,58819.0,58818.0,0.06825089]
[1724175323751,0.08541051,58819.0,58818.0,0.06825089]
[1724175324555,0.08541051,58819.0,58818.0,0.07025089]
[1724175328357,0.25541051,58819.0,58818.0,0.07025089]
[1724175329156,0.25541051,58819.0,58818.0,0.00225489]
[1724175332860,0.18741451,58819.0,58814.0,0.068001]
[1724175333055,0.068001,58814.0,58813.0,0.00019586]
[1724175333258,0.06820727,58814.0,58813.0,0.00019586]
[1724175333859,0.21820727,58814.0,58813.0,0.00019586]
[1724175334362,0.21620727,58814.0,58813.0,0.00019586]
[1724175335258,0.21620727,58814.0,58813.0,0.00219586]
[1724175335754,0.21720727,58814.0,58813.0,0.00219586]
[1724175336060,0.21720727,58814.0,58813.0,0.07019786]
[1724175341887,0.28520827,58814.0,58813.0,0.00219586]
[1724175343887,0.28520827,58814.0,58813.0,0.07019786]
[1724175346378,0.64600827,58814.0,58813.0,0.07019786]
[1724175347181,0.36200627,58814.0,58813.0,0.07019786]
[1724175347586,0.43000727,58814.0,58813.0,0.07019786]
[1724175347884,0.58000727,58814.0,58813.0,0.07019786]
[1724175349677,0.64800827,58814.0,58813.0,0.00219586]
[1724175349880,0.068007,58809.0,58808.0,0.06817794]
[1724175351280,0.068007,58809.0,58808.0,0.06917794]
[1724175351787,0.068007,58809.0,58808.0,0.05517794]
[1724175352589,0.428807,58809.0,58808.0,0.05517794]
[1724175353287,0.656814,58809.0,58808.0,0.001]
[1724175353787,0.37084909,58809.0,58808.0,0.069008]
[1724175355788,0.3608,58809.0,58808.0,0.069008]
[1724175356383,0.37169013,58814.0,58813.0,0.068002]
[1724175357380,0.36126116,58814.0,58813.0,0.068002]
[1724175357582,0.00046116,58814.0,58813.0,0.069002]
[1724175358987,0.00046116,58814.0,58813.0,0.11987491]
[1724175359195,0.00046116,58814.0,58813.0,0.069002]